[Event "Titled Tuesday Blitz July 11 Late 2023"]
[White "Manelyuk, Daniil"]
[Black "Baches Garcia, Guillermo"]
[WhiteFideId "44173920"]
[BlackFideId "2209764"]
[WhiteElo "2640"]
[BlackElo "2464"]
[Result "1-0"]
[Round "4"]
[TimeControl "180+2"]
[Date "2023.07.11"]
[WhiteClock "0:00:22"]
[BlackClock "0:00:00"]
[Board "92"]

1. e4 {[%clk 0:02:58]}  d5 {[%clk 0:02:59]} 2. exd5 {[%clk 0:02:54]}  Qxd5 {[%clk 0:03:00]} 3. Nc3 {[%clk 0:02:54]}  Qa5 {[%clk 0:03:00]} 4. d4 {[%clk 0:02:54]}  Nf6 {[%clk 0:03:01]} 5. Nf3 {[%clk 0:02:51]}  Bf5 {[%clk 0:03:00]} 6. Bc4 {[%clk 0:02:49]}  e6 {[%clk 0:03:00]} 7. O-O {[%clk 0:02:49]}  Nc6 {[%clk 0:02:52]} 8. Be3 {[%clk 0:02:40]}  O-O-O {[%clk 0:02:43]} 9. a3 {[%clk 0:02:30]}  Bg4 {[%clk 0:02:36]} 10. Nb5 {[%clk 0:01:50]}  Nd5 {[%clk 0:02:22]} 11. Bxd5 {[%clk 0:01:35]}  exd5 {[%clk 0:01:55]} 12. Nc3 {[%clk 0:01:29]}  Ne7 {[%clk 0:01:42]} 13. b4 {[%clk 0:01:18]}  Qb6 {[%clk 0:01:42]} 14. h3 {[%clk 0:01:17]}  Bh5 {[%clk 0:01:33]} 15. Na4 {[%clk 0:01:11]}  Qd6 {[%clk 0:01:27]} 16. Nc5 {[%clk 0:01:11]}  Nf5 {[%clk 0:01:16]} 17. Bc1 {[%clk 0:00:44]}  Nh4 {[%clk 0:00:53]} 18. g4 {[%clk 0:00:39]}  Nxf3+ {[%clk 0:00:53]} 19. Qxf3 {[%clk 0:00:40]}  Bg6 {[%clk 0:00:53]} 20. Bf4 {[%clk 0:00:40]}  Qc6 {[%clk 0:00:49]} 21. b5 {[%clk 0:00:37]}  Qb6 {[%clk 0:00:38]} 22. Qc3 {[%clk 0:00:33]}  Bd6 {[%clk 0:00:30]} 23. Be3 {[%clk 0:00:30]}  Bxc5 {[%clk 0:00:22]} 24. dxc5 {[%clk 0:00:31]}  Qxb5 {[%clk 0:00:22]} 25. Rfb1 {[%clk 0:00:26]}  Qc6 {[%clk 0:00:19]} 26. Qxg7 {[%clk 0:00:26]}  d4 {[%clk 0:00:18]} 27. Bxd4 {[%clk 0:00:25]}  Bxc2 {[%clk 0:00:16]} 28. Rb2 {[%clk 0:00:24]}  Be4 {[%clk 0:00:16]} 29. Qf6 {[%clk 0:00:23]}  Rhe8 {[%clk 0:00:10]} 30. Qxc6 {[%clk 0:00:20]}  Bxc6 {[%clk 0:00:10]} 31. Be3 {[%clk 0:00:21]}  Rd3 {[%clk 0:00:09]} 32. Kh2 {[%clk 0:00:21]}  Red8 {[%clk 0:00:06]} 33. Kg3 {[%clk 0:00:21]}  Rd1 {[%clk 0:00:05]} 34. Rxd1 {[%clk 0:00:21]}  Rxd1 {[%clk 0:00:05]} 35. Rb4 {[%clk 0:00:22]}  Kd7 {[%clk 0:00:05]} 36. Rf4 {[%clk 0:00:20]}  Ke6 {[%clk 0:00:05]} 37. g5 {[%clk 0:00:20]}  Rd5 {[%clk 0:00:05]} 38. Kh4 {[%clk 0:00:20]}  Rf5 {[%clk 0:00:05]} 39. Rb4 {[%clk 0:00:20]}  Bg2 {[%clk 0:00:04]} 40. Kg4 {[%clk 0:00:20]}  Bf3+ {[%clk 0:00:04]} 41. Kg3 {[%clk 0:00:20]}  Bc6 {[%clk 0:00:03]} 42. h4 {[%clk 0:00:21]}  Rf3+ {[%clk 0:00:02]} 43. Kg4 {[%clk 0:00:21]}  Rf5 {[%clk 0:00:03]} 44. h5 {[%clk 0:00:21]}  Bf3+ {[%clk 0:00:00]} 45. Kh4 {[%clk 0:00:22]} 1-0


[Site "https://www.chess.com"]

[Event "Titled Tuesday Blitz July 11 Late 2023"]
[White "Skliarov, Viktor"]
[Black "Gatterer, Florian"]
[WhiteFideId "14106736"]
[BlackFideId "811688"]
[WhiteElo "2630"]
[BlackElo "2459"]
[Result "1-0"]
[Round "4"]
[TimeControl "180+2"]
[Date "2023.07.11"]
[WhiteClock "0:00:24"]
[BlackClock "0:00:00"]
[Board "93"]

1. e4 {[%clk 0:03:00]}  c5 {[%clk 0:02:59]} 2. Nf3 {[%clk 0:03:01]}  e6 {[%clk 0:03:00]} 3. c3 {[%clk 0:03:00]}  d5 {[%clk 0:02:59]} 4. e5 {[%clk 0:03:01]}  d4 {[%clk 0:02:59]} 5. Bb5+ {[%clk 0:02:59]}  Bd7 {[%clk 0:02:58]} 6. Bxd7+ {[%clk 0:02:59]}  Nxd7 {[%clk 0:02:58]} 7. d3 {[%clk 0:02:57]}  Ne7 {[%clk 0:02:52]} 8. Bf4 {[%clk 0:02:56]}  Nf5 {[%clk 0:02:44]} 9. c4 {[%clk 0:02:54]}  Be7 {[%clk 0:02:37]} 10. h3 {[%clk 0:02:53]}  Rb8 {[%clk 0:02:32]} 11. Nbd2 {[%clk 0:02:51]}  Rg8 {[%clk 0:02:22]} 12. g4 {[%clk 0:02:48]}  Nh4 {[%clk 0:02:18]} 13. Nxh4 {[%clk 0:02:43]}  Bxh4 {[%clk 0:02:17]} 14. Ne4 {[%clk 0:02:43]}  Be7 {[%clk 0:02:12]} 15. Qa4 {[%clk 0:02:42]}  a6 {[%clk 0:02:09]} 16. a3 {[%clk 0:02:35]}  Kf8 {[%clk 0:02:08]} 17. O-O {[%clk 0:02:19]}  b5 {[%clk 0:01:57]} 18. Qxa6 {[%clk 0:02:12]}  bxc4 {[%clk 0:01:54]} 19. Qxc4 {[%clk 0:02:11]}  Rxb2 {[%clk 0:01:50]} 20. a4 {[%clk 0:02:11]}  Qc7 {[%clk 0:01:30]} 21. a5 {[%clk 0:01:52]}  Nxe5 {[%clk 0:01:22]} 22. Bxe5 {[%clk 0:01:48]}  Qxe5 {[%clk 0:01:22]} 23. a6 {[%clk 0:01:49]}  f5 {[%clk 0:01:09]} 24. a7 {[%clk 0:00:56]}  Kf7 {[%clk 0:01:04]} 25. f4 {[%clk 0:00:56]}  Qd5 {[%clk 0:00:45]} 26. Qxd5 {[%clk 0:00:47]}  exd5 {[%clk 0:00:45]} 27. Ng5+ {[%clk 0:00:48]}  Bxg5 {[%clk 0:00:35]} 28. fxg5 {[%clk 0:00:48]}  Ra8 {[%clk 0:00:31]} 29. Rxf5+ {[%clk 0:00:47]}  Kg8 {[%clk 0:00:28]} 30. Rxd5 {[%clk 0:00:45]}  Rb7 {[%clk 0:00:19]} 31. Rxc5 {[%clk 0:00:44]}  Raxa7 {[%clk 0:00:20]} 32. Rxa7 {[%clk 0:00:43]}  Rxa7 {[%clk 0:00:20]} 33. Rd5 {[%clk 0:00:42]}  Ra4 {[%clk 0:00:19]} 34. Rd7 {[%clk 0:00:41]}  g6 {[%clk 0:00:17]} 35. Kf2 {[%clk 0:00:40]}  Ra2+ {[%clk 0:00:16]} 36. Kg3 {[%clk 0:00:40]}  Ra4 {[%clk 0:00:15]} 37. Kf4 {[%clk 0:00:40]}  Rb4 {[%clk 0:00:10]} 38. Ke4 {[%clk 0:00:40]}  Rb1 {[%clk 0:00:09]} 39. Kxd4 {[%clk 0:00:32]}  Rh1 {[%clk 0:00:08]} 40. Ke5 {[%clk 0:00:32]}  Rxh3 {[%clk 0:00:08]} 41. d4 {[%clk 0:00:33]}  Rg3 {[%clk 0:00:04]} 42. Kf4 {[%clk 0:00:26]}  Rg1 {[%clk 0:00:03]} 43. d5 {[%clk 0:00:26]}  Rf1+ {[%clk 0:00:03]} 44. Ke5 {[%clk 0:00:27]}  Rg1 {[%clk 0:00:03]} 45. Kf6 {[%clk 0:00:26]}  Rf1+ {[%clk 0:00:00]} 46. Ke6 {[%clk 0:00:24]} 1-0


[Site "https://www.chess.com"]

[Event "Titled Tuesday Blitz July 11 Late 2023"]
[White "Ehlvest, Jaan"]
[Black "Flynn, Jacob"]
[WhiteFideId "4500016"]
[BlackFideId "2509393"]
[WhiteElo "2612"]
[BlackElo "2454"]
[Result "1-0"]
[Round "4"]
[TimeControl "180+2"]
[Date "2023.07.11"]
[WhiteClock "0:01:04"]
[BlackClock "0:00:00"]
[Board "94"]

1. e4 {[%clk 0:02:55]}  e5 {[%clk 0:02:48]} 2. Nc3 {[%clk 0:02:51]}  Nf6 {[%clk 0:02:47]} 3. g3 {[%clk 0:02:51]}  d5 {[%clk 0:02:45]} 4. exd5 {[%clk 0:02:50]}  Nxd5 {[%clk 0:02:46]} 5. Bg2 {[%clk 0:02:49]}  Nxc3 {[%clk 0:02:46]} 6. bxc3 {[%clk 0:02:49]}  Bd6 {[%clk 0:02:47]} 7. Nf3 {[%clk 0:02:47]}  Nc6 {[%clk 0:02:46]} 8. O-O {[%clk 0:02:47]}  O-O {[%clk 0:02:47]} 9. d3 {[%clk 0:02:47]}  Bg4 {[%clk 0:02:46]} 10. h3 {[%clk 0:02:46]}  Bh5 {[%clk 0:02:46]} 11. Rb1 {[%clk 0:02:44]}  Rb8 {[%clk 0:02:47]} 12. Re1 {[%clk 0:02:40]}  Re8 {[%clk 0:02:46]} 13. g4 {[%clk 0:02:32]}  Bg6 {[%clk 0:02:47]} 14. Ng5 {[%clk 0:02:31]}  Qd7 {[%clk 0:02:34]} 15. h4 {[%clk 0:02:27]}  h6 {[%clk 0:02:12]} 16. h5 {[%clk 0:02:23]}  Bxh5 {[%clk 0:02:13]} 17. gxh5 {[%clk 0:02:21]}  hxg5 {[%clk 0:02:13]} 18. Bxg5 {[%clk 0:02:20]}  Be7 {[%clk 0:02:05]} 19. Be3 {[%clk 0:02:16]}  Bf6 {[%clk 0:01:45]} 20. Be4 {[%clk 0:02:08]}  Nd8 {[%clk 0:01:41]} 21. Qf3 {[%clk 0:02:05]}  Qd6 {[%clk 0:01:24]} 22. Qf5 {[%clk 0:02:03]}  Kf8 {[%clk 0:01:16]} 23. f4 {[%clk 0:01:59]}  Ne6 {[%clk 0:01:03]} 24. h6 {[%clk 0:01:49]}  Ke7 {[%clk 0:00:41]} 25. fxe5 {[%clk 0:01:39]}  Bxe5 {[%clk 0:00:29]} 26. d4 {[%clk 0:01:31]}  Bh2+ {[%clk 0:00:19]} 27. Kh1 {[%clk 0:01:31]}  gxh6 {[%clk 0:00:17]} 28. d5 {[%clk 0:01:21]}  Ng7 {[%clk 0:00:12]} 29. Qh3 {[%clk 0:01:16]}  Be5 {[%clk 0:00:10]} 30. c4 {[%clk 0:01:14]}  b6 {[%clk 0:00:09]} 31. Bg2 {[%clk 0:01:10]}  f5 {[%clk 0:00:09]} 32. c5 {[%clk 0:01:07]}  bxc5 {[%clk 0:00:09]} 33. Rxb8 {[%clk 0:01:06]}  Rxb8 {[%clk 0:00:10]} 34. Bf4 {[%clk 0:01:05]}  Re8 {[%clk 0:00:00]} 35. Bxe5 {[%clk 0:01:04]} 1-0


[Site "https://www.chess.com"]

[Event "Titled Tuesday Blitz July 11 Late 2023"]
[White "Buchenau, Frank"]
[Black "Veiga, Jose Francisco R P Neves"]
[WhiteFideId "4604350"]
[BlackFideId "1930087"]
[WhiteElo "2402"]
[BlackElo "2610"]
[Result "1/2-1/2"]
[Round "4"]
[TimeControl "180+2"]
[Date "2023.07.11"]
[WhiteClock "0:00:04"]
[BlackClock "0:00:08"]
[Board "96"]

1. e4 {[%clk 0:02:59]}  Nc6 {[%clk 0:02:58]} 2. Nf3 {[%clk 0:02:58]}  d6 {[%clk 0:02:56]} 3. d4 {[%clk 0:02:57]}  Nf6 {[%clk 0:02:57]} 4. Nc3 {[%clk 0:02:57]}  g6 {[%clk 0:02:57]} 5. d5 {[%clk 0:02:55]}  Nb8 {[%clk 0:02:56]} 6. Be2 {[%clk 0:02:48]}  Bg7 {[%clk 0:02:56]} 7. Bg5 {[%clk 0:02:47]}  O-O {[%clk 0:02:56]} 8. Qd2 {[%clk 0:02:47]}  c6 {[%clk 0:02:55]} 9. Bh6 {[%clk 0:02:45]}  Bg4 {[%clk 0:02:43]} 10. Bxg7 {[%clk 0:02:44]}  Kxg7 {[%clk 0:02:43]} 11. O-O {[%clk 0:02:36]}  Nbd7 {[%clk 0:02:41]} 12. Rfe1 {[%clk 0:02:21]}  Bxf3 {[%clk 0:02:38]} 13. Bxf3 {[%clk 0:02:21]}  Ne5 {[%clk 0:02:38]} 14. Be2 {[%clk 0:02:20]}  Qb6 {[%clk 0:02:20]} 15. a4 {[%clk 0:02:09]}  cxd5 {[%clk 0:02:07]} 16. exd5 {[%clk 0:02:06]}  Rac8 {[%clk 0:02:07]} 17. Ra3 {[%clk 0:02:01]}  Qa5 {[%clk 0:01:25]} 18. Rb3 {[%clk 0:01:53]}  Rc7 {[%clk 0:01:23]} 19. Rb5 {[%clk 0:01:52]}  Qa6 {[%clk 0:01:18]} 20. Rc5 {[%clk 0:01:34]}  Qb6 {[%clk 0:01:16]} 21. Rb5 {[%clk 0:01:30]}  Qa6 {[%clk 0:01:16]} 22. Rc5 {[%clk 0:01:29]}  Rxc5 {[%clk 0:01:09]} 23. Bxa6 {[%clk 0:01:28]}  bxa6 {[%clk 0:01:10]} 24. Qd4 {[%clk 0:01:16]}  Rfc8 {[%clk 0:01:00]} 25. f4 {[%clk 0:01:06]}  Rc4 {[%clk 0:01:00]} 26. Qe3 {[%clk 0:01:02]}  Neg4 {[%clk 0:00:57]} 27. Qf3 {[%clk 0:00:57]}  h5 {[%clk 0:00:25]} 28. Rxe7 {[%clk 0:00:56]}  Rb4 {[%clk 0:00:21]} 29. b3 {[%clk 0:00:54]}  Rd4 {[%clk 0:00:18]} 30. h3 {[%clk 0:00:50]}  Nh6 {[%clk 0:00:18]} 31. Ne4 {[%clk 0:00:47]}  Rxc2 {[%clk 0:00:04]} 32. Nxf6 {[%clk 0:00:44]}  Kxf6 {[%clk 0:00:05]} 33. Re2 {[%clk 0:00:38]}  Rc1+ {[%clk 0:00:04]} 34. Kh2 {[%clk 0:00:38]}  Nf5 {[%clk 0:00:04]} 35. Qf2 {[%clk 0:00:35]}  Rdd1 {[%clk 0:00:04]} 36. g4 {[%clk 0:00:32]}  Rh1+ {[%clk 0:00:04]} 37. Kg2 {[%clk 0:00:33]}  hxg4 {[%clk 0:00:05]} 38. hxg4 {[%clk 0:00:32]}  Nh4+ {[%clk 0:00:05]} 39. Kg3 {[%clk 0:00:23]}  Rcg1+ {[%clk 0:00:05]} 40. Qxg1 {[%clk 0:00:23]}  Rxg1+ {[%clk 0:00:06]} 41. Kxh4 {[%clk 0:00:23]}  Rb1 {[%clk 0:00:06]} 42. Re3 {[%clk 0:00:20]}  Rd1 {[%clk 0:00:05]} 43. g5+ {[%clk 0:00:18]}  Kf5 {[%clk 0:00:04]} 44. Re7 {[%clk 0:00:18]}  Kxf4 {[%clk 0:00:04]} 45. Rxf7+ {[%clk 0:00:19]}  Ke5 {[%clk 0:00:04]} 46. Rxa7 {[%clk 0:00:17]}  Kxd5 {[%clk 0:00:03]} 47. Rxa6 {[%clk 0:00:17]}  Ke5 {[%clk 0:00:04]} 48. Kg4 {[%clk 0:00:11]}  Ke4 {[%clk 0:00:04]} 49. Ra8 {[%clk 0:00:09]}  Rg1+ {[%clk 0:00:04]} 50. Kh3 {[%clk 0:00:09]}  Kf5 {[%clk 0:00:05]} 51. a5 {[%clk 0:00:07]}  Kxg5 {[%clk 0:00:05]} 52. Rf8 {[%clk 0:00:06]}  d5 {[%clk 0:00:05]} 53. a6 {[%clk 0:00:06]}  Ra1 {[%clk 0:00:05]} 54. Rd8 {[%clk 0:00:06]}  Rxa6 {[%clk 0:00:04]} 55. Rxd5+ {[%clk 0:00:06]}  Kf4 {[%clk 0:00:05]} 56. Rd4+ {[%clk 0:00:05]}  Ke5 {[%clk 0:00:05]} 57. Rc4 {[%clk 0:00:04]}  Kf5 {[%clk 0:00:06]} 58. Kg3 {[%clk 0:00:04]}  g5 {[%clk 0:00:06]} 59. Kf3 {[%clk 0:00:04]}  Ra3 {[%clk 0:00:05]} 60. Rc5+ {[%clk 0:00:05]}  Kg6 {[%clk 0:00:05]} 61. Rb5 {[%clk 0:00:05]}  Kh5 {[%clk 0:00:05]} 62. Kg3 {[%clk 0:00:05]}  Ra1 {[%clk 0:00:05]} 63. Rb8 {[%clk 0:00:05]}  Rd1 {[%clk 0:00:06]} 64. Kf3 {[%clk 0:00:05]}  Rd3+ {[%clk 0:00:06]} 65. Ke4 {[%clk 0:00:04]}  Rd7 {[%clk 0:00:06]} 66. b4 {[%clk 0:00:05]}  Kg4 {[%clk 0:00:06]} 67. b5 {[%clk 0:00:05]}  Kg3 {[%clk 0:00:06]} 68. b6 {[%clk 0:00:05]}  g4 {[%clk 0:00:07]} 69. b7 {[%clk 0:00:05]}  Kg2 {[%clk 0:00:05]} 70. Rg8 {[%clk 0:00:05]}  Rxb7 {[%clk 0:00:04]} 71. Rxg4+ {[%clk 0:00:05]}  Kf2 {[%clk 0:00:05]} 72. Rf4+ {[%clk 0:00:04]}  Ke2 {[%clk 0:00:05]} 73. Rg4 {[%clk 0:00:04]}  Rb4+ {[%clk 0:00:05]} 74. Kf5 {[%clk 0:00:04]}  Rb5+ {[%clk 0:00:06]} 75. Kf4 {[%clk 0:00:04]}  Kf2 {[%clk 0:00:06]} 76. Rg5 {[%clk 0:00:03]}  Rb4+ {[%clk 0:00:06]} 77. Kf5 {[%clk 0:00:04]}  Kf3 {[%clk 0:00:07]} 78. Rg8 {[%clk 0:00:03]}  Rb5+ {[%clk 0:00:07]} 79. Ke6 {[%clk 0:00:03]}  Kf4 {[%clk 0:00:07]} 80. Kd6 {[%clk 0:00:04]}  Rf5 {[%clk 0:00:06]} 81. Re8 {[%clk 0:00:03]}  Rf6+ {[%clk 0:00:06]} 82. Re6 {[%clk 0:00:04]}  Rf5 {[%clk 0:00:07]} 83. Re7 {[%clk 0:00:04]}  Rf6+ {[%clk 0:00:07]} 84. Re6 {[%clk 0:00:04]}  Rxe6+ {[%clk 0:00:08]} 85. Kxe6 {[%clk 0:00:04]} 1/2-1/2


[Site "https://www.chess.com"]

[Event "Titled Tuesday Blitz July 11 Late 2023"]
[White "Prydun, Andriy"]
[Black "Garcia Ramos, Daniel"]
[WhiteFideId "14145898"]
[BlackFideId "32010311"]
[WhiteElo "2387"]
[BlackElo "2608"]
[Result "0-1"]
[Round "4"]
[TimeControl "180+2"]
[Date "2023.07.11"]
[WhiteClock "0:00:06"]
[BlackClock "0:00:25"]
[Board "98"]

1. d4 {[%clk 0:02:27]}  c5 {[%clk 0:03:00]} 2. dxc5 {[%clk 0:02:25]}  e6 {[%clk 0:02:59]} 3. e4 {[%clk 0:02:24]}  Bxc5 {[%clk 0:02:59]} 4. Nd2 {[%clk 0:02:23]}  Nf6 {[%clk 0:02:55]} 5. e5 {[%clk 0:02:23]}  Nd5 {[%clk 0:02:46]} 6. Ne4 {[%clk 0:02:22]}  Be7 {[%clk 0:02:46]} 7. c4 {[%clk 0:02:20]}  Nb4 {[%clk 0:02:42]} 8. Nf3 {[%clk 0:02:19]}  O-O {[%clk 0:02:39]} 9. a3 {[%clk 0:02:19]}  N4c6 {[%clk 0:02:37]} 10. b4 {[%clk 0:02:19]}  f6 {[%clk 0:02:17]} 11. Bb2 {[%clk 0:02:06]}  fxe5 {[%clk 0:02:12]} 12. b5 {[%clk 0:02:06]}  Nd4 {[%clk 0:02:00]} 13. Nxe5 {[%clk 0:02:00]}  Nf5 {[%clk 0:01:59]} 14. Bd3 {[%clk 0:00:41]}  d5 {[%clk 0:01:40]} 15. Ng3 {[%clk 0:00:33]}  Qa5+ {[%clk 0:01:39]} 16. Ke2 {[%clk 0:00:32]}  dxc4 {[%clk 0:01:09]} 17. Bxc4 {[%clk 0:00:31]}  Nd6 {[%clk 0:00:58]} 18. Bd3 {[%clk 0:00:20]}  Nxb5 {[%clk 0:00:49]} 19. Qc2 {[%clk 0:00:10]}  Rf6 {[%clk 0:00:29]} 20. Bxh7+ {[%clk 0:00:10]}  Kf8 {[%clk 0:00:30]} 21. Bd3 {[%clk 0:00:10]}  Nc6 {[%clk 0:00:28]} 22. Nxc6 {[%clk 0:00:09]}  bxc6 {[%clk 0:00:27]} 23. Qxc6 {[%clk 0:00:09]}  Rb8 {[%clk 0:00:25]} 24. Bxf6 {[%clk 0:00:07]}  Bxf6 {[%clk 0:00:25]} 25. Ne4 {[%clk 0:00:07]}  Nd4+ {[%clk 0:00:25]} 26. Ke3 {[%clk 0:00:06]}  Nxc6 {[%clk 0:00:25]} 0-1


[Site "https://www.chess.com"]

[Event "Titled Tuesday Blitz July 11 Late 2023"]
[White "Grinev, Valeriy"]
[Black "Stachanczyk, Jacek"]
[WhiteFideId "14117517"]
[BlackFideId "1116657"]
[WhiteElo "2590"]
[BlackElo "2363"]
[Result "0-1"]
[Round "4"]
[TimeControl "180+2"]
[Date "2023.07.11"]
[WhiteClock "0:01:30"]
[BlackClock "0:01:04"]
[Board "99"]

1. e4 {[%clk 0:03:00]}  c5 {[%clk 0:02:56]} 2. Nf3 {[%clk 0:03:01]}  d6 {[%clk 0:02:56]} 3. Bb5+ {[%clk 0:03:00]}  Bd7 {[%clk 0:02:52]} 4. a4 {[%clk 0:03:00]}  Nf6 {[%clk 0:02:42]} 5. Nc3 {[%clk 0:02:59]}  Nc6 {[%clk 0:02:39]} 6. O-O {[%clk 0:02:57]}  e5 {[%clk 0:02:38]} 7. Re1 {[%clk 0:02:56]}  Be7 {[%clk 0:02:37]} 8. h3 {[%clk 0:02:55]}  O-O {[%clk 0:02:36]} 9. d3 {[%clk 0:02:53]}  h6 {[%clk 0:02:36]} 10. b3 {[%clk 0:02:41]}  Rc8 {[%clk 0:02:31]} 11. Bxc6 {[%clk 0:02:38]}  Bxc6 {[%clk 0:02:28]} 12. Nh2 {[%clk 0:02:39]}  Re8 {[%clk 0:02:24]} 13. f4 {[%clk 0:02:38]}  exf4 {[%clk 0:02:22]} 14. Bxf4 {[%clk 0:02:37]}  Nd7 {[%clk 0:02:11]} 15. Qg4 {[%clk 0:02:31]}  Bf6 {[%clk 0:02:01]} 16. Bd2 {[%clk 0:02:28]}  Ne5 {[%clk 0:02:01]} 17. Qe2 {[%clk 0:02:24]}  d5 {[%clk 0:01:56]} 18. Ng4 {[%clk 0:02:19]}  Nxg4 {[%clk 0:01:54]} 19. Qxg4 {[%clk 0:02:17]}  dxe4 {[%clk 0:01:48]} 20. Nxe4 {[%clk 0:02:01]}  Bxe4 {[%clk 0:01:47]} 21. Rxe4 {[%clk 0:01:58]}  Rxe4 {[%clk 0:01:45]} 22. dxe4 {[%clk 0:01:57]}  Bxa1 {[%clk 0:01:44]} 23. c3 {[%clk 0:01:57]}  Rc6 {[%clk 0:01:39]} 24. Be1 {[%clk 0:01:51]}  Qf6 {[%clk 0:01:28]} 25. e5 {[%clk 0:01:49]}  Qxe5 {[%clk 0:01:24]} 26. Bg3 {[%clk 0:01:49]}  Qxc3 {[%clk 0:01:14]} 27. Kh2 {[%clk 0:01:48]}  Qf6 {[%clk 0:01:11]} 28. Qd7 {[%clk 0:01:47]}  Be5 {[%clk 0:01:09]} 29. Qe8+ {[%clk 0:01:46]}  Kh7 {[%clk 0:01:07]} 30. Bxe5 {[%clk 0:01:45]}  Re6 {[%clk 0:01:05]} 31. Bxf6 {[%clk 0:01:40]}  Rxe8 {[%clk 0:01:05]} 32. Bc3 {[%clk 0:01:38]}  Re3 {[%clk 0:01:03]} 33. Bd2 {[%clk 0:01:36]}  Rxb3 {[%clk 0:01:04]} 34. a5 {[%clk 0:01:36]}  c4 {[%clk 0:01:03]} 35. Kg1 {[%clk 0:01:34]}  c3 {[%clk 0:01:02]} 36. Bf4 {[%clk 0:01:33]}  Rb1+ {[%clk 0:01:01]} 37. Kf2 {[%clk 0:01:34]}  c2 {[%clk 0:01:02]} 38. Ke2 {[%clk 0:01:32]}  c1=Q {[%clk 0:01:03]} 39. Bxc1 {[%clk 0:01:32]}  Rxc1 {[%clk 0:01:03]} 40. Kd2 {[%clk 0:01:33]}  Ra1 {[%clk 0:01:04]} 41. Kc3 {[%clk 0:01:33]}  Rxa5 {[%clk 0:01:03]} 42. Kb4 {[%clk 0:01:34]}  b6 {[%clk 0:01:03]} 43. g4 {[%clk 0:01:33]}  Kg6 {[%clk 0:01:04]} 44. h4 {[%clk 0:01:33]}  Kf6 {[%clk 0:01:04]} 45. h5 {[%clk 0:01:30]}  Kg5 {[%clk 0:01:04]} 0-1


[Site "https://www.chess.com"]

[Event "Titled Tuesday Blitz July 11 Late 2023"]
[White "Rottenwohrer Suarez, Juan"]
[Black "Fajdetic, Hrvoje"]
[WhiteFideId "32068182"]
[BlackFideId "14501945"]
[WhiteElo "2538"]
[BlackElo "2338"]
[Result "1-0"]
[Round "4"]
[TimeControl "180+2"]
[Date "2023.07.11"]
[WhiteClock "0:00:04"]
[BlackClock "0:00:07"]
[Board "100"]

1. c4 {[%clk 0:02:53]}  c5 {[%clk 0:02:54]} 2. Nf3 {[%clk 0:02:47]}  Nc6 {[%clk 0:02:52]} 3. Nc3 {[%clk 0:02:46]}  g6 {[%clk 0:02:52]} 4. g3 {[%clk 0:02:44]}  Bg7 {[%clk 0:02:52]} 5. Bg2 {[%clk 0:02:44]}  e6 {[%clk 0:02:51]} 6. O-O {[%clk 0:02:43]}  Nge7 {[%clk 0:02:50]} 7. e3 {[%clk 0:02:33]}  d5 {[%clk 0:02:48]} 8. cxd5 {[%clk 0:02:32]}  exd5 {[%clk 0:02:49]} 9. d4 {[%clk 0:02:32]}  cxd4 {[%clk 0:02:46]} 10. Nxd4 {[%clk 0:02:30]}  Nxd4 {[%clk 0:02:46]} 11. exd4 {[%clk 0:02:31]}  O-O {[%clk 0:02:40]} 12. Bg5 {[%clk 0:02:21]}  f6 {[%clk 0:02:31]} 13. Bf4 {[%clk 0:02:20]}  Be6 {[%clk 0:02:29]} 14. Re1 {[%clk 0:02:19]}  Bf7 {[%clk 0:02:29]} 15. Qb3 {[%clk 0:02:17]}  Qd7 {[%clk 0:02:20]} 16. Rad1 {[%clk 0:01:57]}  Rad8 {[%clk 0:02:15]} 17. h4 {[%clk 0:01:57]}  Nc6 {[%clk 0:01:53]} 18. Kh2 {[%clk 0:01:29]}  h6 {[%clk 0:01:34]} 19. Be3 {[%clk 0:01:20]}  Na5 {[%clk 0:01:29]} 20. Qb5 {[%clk 0:01:06]}  Nc4 {[%clk 0:01:24]} 21. b3 {[%clk 0:01:03]}  Nxe3 {[%clk 0:01:13]} 22. Rxe3 {[%clk 0:01:00]}  Qxb5 {[%clk 0:01:06]} 23. Nxb5 {[%clk 0:01:00]}  a6 {[%clk 0:01:06]} 24. Nc3 {[%clk 0:00:54]}  f5 {[%clk 0:01:04]} 25. Re7 {[%clk 0:00:52]}  b5 {[%clk 0:00:58]} 26. Ra7 {[%clk 0:00:49]}  Rd6 {[%clk 0:00:57]} 27. Ne2 {[%clk 0:00:42]}  g5 {[%clk 0:00:55]} 28. Rc1 {[%clk 0:00:23]}  Re8 {[%clk 0:00:19]} 29. Rcc7 {[%clk 0:00:19]}  Rxe2 {[%clk 0:00:12]} 30. Rxf7 {[%clk 0:00:18]}  Bf8 {[%clk 0:00:12]} 31. hxg5 {[%clk 0:00:11]}  hxg5 {[%clk 0:00:13]} 32. Rxf5 {[%clk 0:00:11]}  Bg7 {[%clk 0:00:08]} 33. Bxd5+ {[%clk 0:00:10]}  Kh8 {[%clk 0:00:09]} 34. Kg2 {[%clk 0:00:05]}  Bxd4 {[%clk 0:00:07]} 35. Rf8# {[%clk 0:00:04]} 1-0


[Site "https://www.chess.com"]

[Event "Titled Tuesday Blitz July 11 Late 2023"]
[White "kiwibobo"]
[Black "Santos Flores, Alberto"]
[BlackFideId "3601234"]
[WhiteElo "2333"]
[BlackElo "2516"]
[Result "0-1"]
[Round "4"]
[TimeControl "180+2"]
[Date "2023.07.11"]
[WhiteClock "0:00:08"]
[BlackClock "0:00:31"]
[Board "101"]

1. e4 {[%clk 0:03:00]}  c5 {[%clk 0:02:59]} 2. Nf3 {[%clk 0:02:59]}  Nc6 {[%clk 0:02:57]} 3. d4 {[%clk 0:02:59]}  cxd4 {[%clk 0:02:58]} 4. Nxd4 {[%clk 0:02:59]}  g6 {[%clk 0:02:58]} 5. Nc3 {[%clk 0:03:00]}  Bg7 {[%clk 0:02:58]} 6. Be3 {[%clk 0:03:00]}  Nf6 {[%clk 0:02:57]} 7. Nxc6 {[%clk 0:03:00]}  bxc6 {[%clk 0:02:57]} 8. e5 {[%clk 0:03:01]}  Ng8 {[%clk 0:02:57]} 9. Bd4 {[%clk 0:03:01]}  f6 {[%clk 0:02:52]} 10. f4 {[%clk 0:03:01]}  Qa5 {[%clk 0:02:51]} 11. Qe2 {[%clk 0:03:00]}  fxe5 {[%clk 0:02:50]} 12. Bxe5 {[%clk 0:02:59]}  Nf6 {[%clk 0:02:50]} 13. O-O-O {[%clk 0:02:42]}  d5 {[%clk 0:02:48]} 14. Bd4 {[%clk 0:02:12]}  e6 {[%clk 0:02:23]} 15. g3 {[%clk 0:02:02]}  O-O {[%clk 0:02:22]} 16. Bh3 {[%clk 0:02:02]}  Re8 {[%clk 0:02:19]} 17. Be5 {[%clk 0:02:01]}  Qb4 {[%clk 0:02:12]} 18. Qd2 {[%clk 0:01:56]}  Bd7 {[%clk 0:02:04]} 19. Qd4 {[%clk 0:01:54]}  Qxd4 {[%clk 0:02:03]} 20. Bxd4 {[%clk 0:01:55]}  Kf7 {[%clk 0:01:50]} 21. Rhe1 {[%clk 0:01:46]}  Rec8 {[%clk 0:01:48]} 22. Na4 {[%clk 0:01:36]}  Ne4 {[%clk 0:01:47]} 23. Bxg7 {[%clk 0:01:31]}  Nf2 {[%clk 0:01:47]} 24. Be5 {[%clk 0:01:02]}  Nxh3 {[%clk 0:01:44]} 25. Nc5 {[%clk 0:01:03]}  Ke7 {[%clk 0:01:36]} 26. Bd4 {[%clk 0:00:57]}  Rab8 {[%clk 0:01:29]} 27. Re3 {[%clk 0:00:50]}  Nf2 {[%clk 0:01:04]} 28. Rde1 {[%clk 0:00:43]}  Ne4 {[%clk 0:01:04]} 29. Nxe4 {[%clk 0:00:44]}  dxe4 {[%clk 0:01:04]} 30. Rxe4 {[%clk 0:00:44]}  a6 {[%clk 0:01:04]} 31. Bc5+ {[%clk 0:00:43]}  Ke8 {[%clk 0:01:02]} 32. Bd6 {[%clk 0:00:28]}  Rb5 {[%clk 0:01:01]} 33. Be5 {[%clk 0:00:25]}  c5 {[%clk 0:00:50]} 34. Rd1 {[%clk 0:00:24]}  Bc6 {[%clk 0:00:41]} 35. Re3 {[%clk 0:00:24]}  Bd5 {[%clk 0:00:41]} 36. b3 {[%clk 0:00:20]}  c4 {[%clk 0:00:40]} 37. Rc3 {[%clk 0:00:21]}  Kd7 {[%clk 0:00:39]} 38. Rd4 {[%clk 0:00:20]}  cxb3 {[%clk 0:00:37]} 39. Rxc8 {[%clk 0:00:17]}  b2+ {[%clk 0:00:34]} 40. Kd2 {[%clk 0:00:14]}  Kxc8 {[%clk 0:00:32]} 41. Rxd5 {[%clk 0:00:08]}  Rxd5+ {[%clk 0:00:31]} 0-1


[Site "https://www.chess.com"]